bitfinex/quotes_SOLUSD_20220119
["timestamp","ask_amount","ask_price","bid_price","bid_amount"]
[1642633845040,0.25,136.59,136.54,6.0]
[1642633845238,0.25,136.59,136.53,6.0]
[1642633845442,73.04,136.58,136.53,6.0]
[1642633845638,73.04,136.58,136.5,6.0]
[1642633845839,0.25,136.57,136.5,0.25]
[1642633846138,107.54475803,136.57,136.5,0.25]
[1642633846337,107.54475803,136.57,136.49,33.67194209]
[1642633846738,107.29475803,136.57,136.49,33.67194209]
[1642633847139,0.25,136.56,136.5,6.0]
[1642633850641,11.2384,136.56,136.48,2.928]
[1642633851043,73.04,136.55,136.48,2.928]
[1642633851242,0.25,136.54,136.47,2.93]
[1642633851443,8.493,136.54,136.47,6.0]
[1642633851642,41.53288466,136.53,136.47,6.0]
[1642633851843,41.53288466,136.53,136.46,2.93]
[1642633852042,41.53288466,136.53,136.47,6.0]
[1642633852844,52.52378466,136.53,136.47,6.0]
[1642633853443,73.04,136.52,136.47,6.0]
[1642633855044,84.0317,136.52,136.47,6.0]
[1642633855244,84.2917,136.52,136.47,6.0]
[1642633855844,84.2917,136.52,136.43,10.9911]
[1642633856845,84.2917,136.52,136.44,35.8736734]
[1642633857045,84.2917,136.52,136.44,3.18]
[1642633857245,10.9938,136.5,136.44,0.25]
[1642633857446,73.04,136.49,136.41,50.1908]
[1642633857645,73.04,136.49,136.39,10.6]
[1642633857646,73.29,136.49,136.43,0.25]
[1642633858045,108.1412289,136.49,136.43,0.25]
[1642633858648,108.1412289,136.49,136.42,6.25]
[1642633859048,119.1355289,136.49,136.42,6.25]
[1642633860048,119.1355289,136.49,136.42,6.0]
[1642633860449,119.1355289,136.49,136.41,33.28321953]
[1642633860952,119.3955289,136.49,136.41,33.28321953]
[1642633861252,119.3955289,136.49,136.42,0.25]
[1642633863854,119.3955289,136.49,136.41,33.28321953]
[1642633868392,1.47296151,136.51,136.42,2.931]
[1642633868587,2.931,136.52,136.42,3.181]
[1642633868787,10.6,136.54,136.43,6.0]
[1642633868989,34.1005,136.54,136.44,2.93]
[1642633869189,6.0,136.53,136.44,3.18]
[1642633869390,40.15951311,136.52,136.45,9.51266691]
[1642633869791,34.1005,136.54,136.46,0.25]
[1642633869992,10.9908,136.53,136.46,3.18]
[1642633870690,46.60661105,136.52,136.46,3.18]
[1642633871791,46.60661105,136.52,136.46,2.93]
[1642633871994,46.60661105,136.52,136.45,12.44266691]
[1642633872192,84.0308,136.53,136.46,0.25]
[1642633872594,0.25,136.52,136.46,0.25]
[1642633873196,0.25,136.52,136.45,12.44266691]
[1642633874697,11.2415,136.52,136.45,12.44266691]
[1642633875601,44.04066209,136.53,136.46,0.25]
[1642633875798,0.25,136.52,136.45,12.44266691]
[1642633876599,0.25,136.52,136.46,0.25]
[1642633876799,0.25,136.52,136.45,12.44266691]
[1642633877700,0.25,136.52,136.46,0.25]
[1642633878702,0.25,136.53,136.46,0.25]
[1642633878899,0.26,136.54,136.46,0.25]
[1642633879103,13.53,136.56,136.46,0.25]
[1642633879104,10.6,136.56,136.46,0.25]
[1642633879299,0.25,136.54,136.47,2.93]
[1642633879501,0.25,136.54,136.48,33.28321953]
[1642633879700,0.25,136.54,136.48,33.79321953]
[1642633880200,0.25,136.55,136.48,33.79321953]
[1642633880802,0.25,136.55,136.48,33.53321953]
[1642633881001,0.25,136.55,136.48,44.52041953]
[1642633881304,10.6,136.56,136.48,44.52041953]
[1642633881701,10.86,136.56,136.48,44.52041953]
[1642633882804,0.25,136.55,136.48,44.52041953]
[1642633888914,0.25,136.55,136.48,33.53321953]
[1642633889312,0.25,136.55,136.48,0.25]
[1642633890012,11.2391,136.55,136.48,0.25]
[1642633890412,28.24909797,136.54,136.48,0.25]
[1642633890817,0.25,136.53,136.48,0.25]
[1642633891814,0.25,136.53,136.47,31.56728473]
[1642633892014,0.25,136.53,136.46,33.6987]
[1642633892215,0.25,136.53,136.47,6.25]
[1642633894518,0.25,136.53,136.46,73.69632037]
[1642633894719,0.25,136.53,136.47,6.0]
[1642633898620,73.29,136.53,136.47,6.0]
[1642633898822,73.29,136.53,136.46,22.7093]
[1642633899848,84.2807,136.53,136.46,22.7093]
[1642633900048,84.2807,136.53,136.45,37.90571304]
[1642633900248,84.2807,136.53,136.45,40.83571304]
[1642633901048,84.5407,136.53,136.45,40.83571304]
[1642633903550,84.5407,136.53,136.45,37.90571304]
[1642633907156,84.5407,136.53,136.45,40.83571304]
[1642633908355,84.5407,136.53,136.46,0.25]
[1642633908557,11.5007,136.53,136.46,0.25]
[1642633909557,84.5407,136.53,136.46,0.25]
[1642633909760,84.5407,136.53,136.45,40.83571304]
[1642633911058,11.5007,136.53,136.45,40.83571304]
[1642633913261,11.5007,136.53,136.46,0.25]
[1642633913662,84.5407,136.53,136.46,0.25]
[1642633913864,11.30640856,136.51,136.45,2.93]
[1642633914064,11.30640856,136.51,136.41,2.93]
[1642633914264,25.1536,136.5,136.4,2.931]
[1642633914465,25.1536,136.5,136.4,6.0]
[1642633914667,25.1536,136.5,136.39,6.0]
[1642633914865,36.00323419,136.49,136.4,39.28357333]
[1642633915167,24.9036,136.5,136.41,17.2432]
[1642633915365,10.6,136.52,136.41,17.2432]
[1642633915565,33.1925,136.52,136.41,17.5032]
[1642633916167,45.59813839,136.51,136.41,17.5032]
[1642633916367,45.59813839,136.51,136.43,6.44331311]
[1642633916567,56.58993839,136.51,136.44,2.931]
[1642633916768,56.58993839,136.51,136.44,3.181]
[1642633916968,56.84993839,136.51,136.44,3.181]
[1642633918971,56.84993839,136.51,136.44,0.25]
[1642633921975,0.25,136.5,136.43,17.69471311]
[1642633922175,0.25,136.5,136.44,0.25]
[1642633924781,0.25,136.5,136.43,17.69471311]
[1642633925681,0.25,136.5,136.44,0.25]
[1642633930382,67.98789463,136.54,136.44,11.2409]
[1642633930587,2.93,136.56,136.45,86.57]
[1642633930783,76.55422434,136.59,136.51,15.27557816]
[1642633930984,76.55422434,136.59,136.52,2.928]
[1642633931197,76.55422434,136.59,136.52,9.438]
[1642633931484,76.55422434,136.59,136.52,25.5390218]
[1642633931685,34.91146292,136.6,136.52,25.5390218]
[1642633932082,34.91146292,136.6,136.54,10.9815]
[1642633932284,34.91146292,136.6,136.55,3.178]
[1642633932484,34.91146292,136.6,136.55,9.178]
[1642633932885,13.04924619,136.64,136.55,9.178]
[1642633933087,27.06484619,136.65,136.55,17.4921]
[1642633933287,27.06484619,136.65,136.56,2.928]
[1642633933288,24.9982,136.65,136.56,2.928]
[1642633933586,24.9982,136.65,136.57,6.0]
[1642633933789,24.9982,136.65,136.57,6.25]
[1642633933987,35.41836668,136.64,136.57,6.25]
[1642633934991,35.41836668,136.64,136.57,17.2304]
[1642633935192,35.67836668,136.64,136.57,17.2304]
[1642633936195,35.67836668,136.64,136.57,6.25]
[1642633936395,35.67836668,136.64,136.57,6.0]
[1642633936594,35.67836668,136.64,136.58,0.25]
[1642633937093,35.41836668,136.64,136.58,0.25]
[1642633937295,2.928,136.67,136.58,0.25]
[1642633937493,10.9799,136.68,136.58,3.177]
[1642633937692,10.9799,136.68,136.58,3.437]
[1642633937693,0.25,136.67,136.58,3.437]
[1642633937894,0.25,136.67,136.59,6.0]
[1642633938294,37.00979012,136.67,136.6,0.25]
[1642633939195,37.26979012,136.67,136.6,0.25]
[1642633939400,37.01979012,136.67,136.6,0.25]
[1642633939899,36.75979012,136.67,136.6,0.25]
[1642633940102,36.75979012,136.67,136.6,11.2282]
[1642633940301,36.75979012,136.67,136.6,11.4882]
[1642633940928,36.75979012,136.67,136.6,14.4152]
[1642633941129,37.01979012,136.67,136.6,14.4152]
[1642633941527,1.57092458,136.69,136.6,14.4152]
[1642633942029,1.57092458,136.69,136.63,10.9756]
[1642633942227,1.57092458,136.69,136.64,0.25]
[1642633942429,1.57092458,136.69,136.64,6.25]
[1642633943232,1.83092458,136.69,136.64,6.25]
[1642633943430,1.83092458,136.69,136.64,17.2248]
[1642633943629,1.83092458,136.69,136.64,11.4848]
[1642633943830,1.57092458,136.69,136.64,11.4848]
[1642633945235,1.83092458,136.69,136.64,11.4848]
[1642633945740,44.9663597,136.68,136.64,11.4848]
[1642633945935,1.57092458,136.69,136.64,11.4848]
[1642633946136,2.926,136.74,136.64,84.5248]
[1642633946341,2.926,136.76,136.69,73.04]
[1642633946539,75.07357797,136.78,136.7,6.0]
[1642633946837,2.06664619,136.82,136.7,9.434]
[1642633946838,13.524,136.82,136.7,9.434]
[1642633947038,42.09572824,136.81,136.7,9.434]
[1642633948038,42.09572824,136.81,136.71,10.9689]
[1642633948240,42.09572824,136.81,136.72,3.174]
[1642633948439,42.09572824,136.81,136.72,9.174]
[1642633948638,42.09572824,136.81,136.72,9.434]
[1642633948841,0.25,136.8,136.72,9.434]
[1642633949043,0.25,136.8,136.72,6.51]
[1642633949442,0.25,136.8,136.72,0.51]
[1642633949741,0.25,136.8,136.72,0.25]
[1642633949940,0.25,136.8,136.72,11.2181]
[1642633950344,0.25,136.8,136.72,11.4781]
[1642633950541,23.4587,136.85,136.73,79.04]
[1642633950744,86.91584228,136.86,136.75,73.04]
[1642633950745,84.84919609,136.86,136.75,73.04]
[1642633950943,84.84919609,136.86,136.76,10.6]
[1642633951244,49.1957,136.89,136.79,10.9618]
[1642633951443,47.97908976,136.88,136.76,17.11]
[1642633951644,10.9642,136.87,136.76,17.11]
[1642633951844,16.9642,136.87,136.76,17.11]
[1642633952043,6.0,136.87,136.76,17.11]
[1642633952244,6.0,136.87,136.77,12.36354655]
[1642633952646,6.0,136.87,136.78,0.25]
[1642633952845,6.0,136.87,136.79,2.923]
[1642633953246,6.0,136.87,136.8,6.25]
[1642633953444,6.0,136.87,136.8,0.25]
[1642633953445,6.26,136.87,136.8,0.25]
[1642633953645,0.25,136.86,136.78,2.923]
[1642633953846,0.25,136.86,136.77,2.923]
[1642633954045,0.25,136.86,136.77,0.25]
[1642633954245,0.25,136.86,136.78,6.0]
[1642633954448,0.25,136.86,136.78,2.923]
[1642633954646,47.94743048,136.84,136.78,2.923]
[1642633954846,47.94743048,136.84,136.7,57.4844]
[1642633954847,2.923,136.83,136.7,57.4844]
[1642633955047,27.3835,136.83,136.7,57.4844]
[1642633955248,41.71591627,136.81,136.7,57.4844]
[1642633955648,41.71591627,136.81,136.71,2.924]
[1642633955851,41.71591627,136.81,136.71,13.8926]
[1642633956048,41.71591627,136.81,136.72,0.25]
[1642633956249,0.25,136.8,136.73,2.924]
[1642633956450,0.25,136.8,136.72,3.174]
[1642633956650,1.82712602,136.82,136.73,0.25]
[1642633956849,4.75112602,136.85,136.73,6.25]
[1642633957050,3.23476013,136.89,136.74,13.524]
[1642633957051,2.924,136.86,136.74,13.524]
[1642633957250,2.923,136.88,136.75,0.25]
[1642633957449,6.0,136.85,136.76,2.923]
[1642633957648,35.546913,136.86,136.77,6.25]
[1642633957848,35.546913,136.86,136.78,2.923]
[1642633958055,6.0,136.85,136.78,2.923]
[1642633958252,6.26,136.85,136.79,0.25]
[1642633958453,6.26,136.85,136.8,2.923]
[1642633958851,6.26,136.85,136.81,0.25]
[1642633960283,6.0,136.85,136.81,0.25]
[1642633960687,6.0,136.87,136.81,0.25]
[1642633961086,6.0,136.88,136.81,0.25]
[1642633961283,6.25,136.88,136.81,0.25]
[1642633961481,35.26455349,136.87,136.81,0.25]
[1642633962682,6.0,136.86,136.81,0.25]
[1642633962881,6.0,136.86,136.78,2.923]
[1642633963083,6.0,136.86,136.79,6.0]
[1642633963282,0.25,136.85,136.77,6.0]
[1642633964284,11.2158,136.85,136.76,2.923]
[1642633964482,43.17200453,136.83,136.73,2.923]
[1642633964682,0.25,136.82,136.72,2.924]
[1642633964882,1.82712602,136.82,136.72,2.924]
[1642633965085,2.924,136.83,136.73,10.6]
[1642633965283,11.76811394,136.89,136.73,11.99924655]
[1642633965484,11.76811394,136.89,136.74,1.39924655]
[1642633965685,6.0,136.88,136.74,12.24924655]
[1642633965887,49.05136682,136.87,136.75,6.0]
[1642633966187,36.2426798,136.84,136.76,0.25]
[1642633966586,6.0,136.83,136.76,0.25]
[1642633967386,6.26,136.83,136.76,0.25]
[1642633968887,6.26,136.83,136.75,17.2249]
[1642633969095,0.26,136.83,136.75,17.2249]
[1642633969287,36.5026798,136.84,136.75,17.20447431]
[1642633970188,36.5026798,136.84,136.76,0.25]
[1642633971291,36.5026798,136.84,136.76,3.173]
[1642633971691,0.25,136.83,136.77,6.0]
[1642633972191,36.5026798,136.84,136.78,0.25]
[1642633973193,36.5026798,136.84,136.77,0.25]
[1642633973393,36.5026798,136.84,136.78,2.923]
[1642633973795,36.5026798,136.84,136.79,0.25]
[1642633974092,36.5026798,136.84,136.77,2.923]
[1642633974292,36.5026798,136.84,136.79,0.25]
[1642633975092,36.5026798,136.84,136.76,19.8882]
[1642633975294,0.25,136.83,136.77,0.25]
[1642633975495,36.5026798,136.84,136.77,0.25]
[1642633975691,38.56932599,136.84,136.77,0.25]
[1642633975893,36.5026798,136.84,136.77,0.25]
[1642633976493,38.56932599,136.84,136.77,0.25]
[1642633976894,36.5026798,136.84,136.77,0.25]
[1642633977296,38.56932599,136.84,136.77,0.25]
[1642633978394,38.56932599,136.84,136.77,11.2144]
[1642633978894,2.06664619,136.84,136.78,2.923]
[1642633979096,26.83064619,136.85,136.78,2.923]
[1642633979293,26.83064619,136.85,136.79,0.25]
[1642633980496,2.06664619,136.85,136.79,0.25]
[1642633980700,2.06664619,136.85,136.79,10.9629]
[1642633980900,2.06664619,136.86,136.79,10.9629]
[1642633981099,2.06664619,136.86,136.8,0.25]
[1642633981495,2.32664619,136.86,136.8,0.25]
[1642633982098,2.32664619,136.86,136.8,11.2116]
[1642633982396,2.32664619,136.86,136.8,11.4716]
[1642633982597,2.06664619,136.86,136.8,11.2116]
[1642633984098,2.06664619,136.86,136.81,2.923]
[1642633984299,2.06664619,136.86,136.82,0.25]
[1642633985899,2.06664619,136.86,136.81,2.923]
[1642633986100,2.06664619,136.86,136.8,10.9616]
[1642633986300,2.06664619,136.85,136.8,10.9616]
[1642633986701,49.08036808,136.84,136.8,10.9616]
[1642633987006,49.08036808,136.84,136.79,2.923]
[1642633987202,51.14701427,136.84,136.8,0.25]
[1642633987603,2.06664619,136.83,136.8,0.25]
[1642633988001,51.14701427,136.84,136.77,10.9645]
[1642633988201,2.06664619,136.83,136.77,10.9645]
[1642633988401,2.06664619,136.82,136.77,10.9645]
[1642633988700,44.26624397,136.81,136.75,2.924]
[1642633988900,44.26624397,136.81,136.74,2.924]
[1642633989101,44.26624397,136.81,136.74,8.924]
[1642633989304,44.26624397,136.81,136.75,0.25]
[1642633989503,44.26624397,136.81,136.75,11.2161]
[1642633989701,44.52624397,136.81,136.75,11.2161]
[1642633990507,46.59289016,136.81,136.75,11.2161]
[1642633990704,44.52624397,136.81,136.75,11.2161]
[1642633990907,46.59289016,136.81,136.75,11.2161]
[1642633992507,46.59289016,136.81,136.76,6.0]
[1642633992708,46.59289016,136.81,136.77,0.25]
[1642633993308,46.59289016,136.81,136.76,6.0]
[1642633993506,2.32664619,136.81,136.77,0.25]
[1642633993710,2.32664619,136.81,136.77,3.174]
[1642633993711,0.26,136.81,136.77,3.174]
[1642633993908,0.26,136.81,136.77,0.25]
[1642633994111,2.06664619,136.83,136.77,0.25]
[1642633994610,42.76073905,136.83,136.77,0.25]
[1642633994808,2.06664619,136.83,136.77,0.25]
[1642633995107,2.06664619,136.83,136.77,11.2146]
[1642633996609,2.06664619,136.83,136.77,11.4746]
[1642633996808,24.89914619,136.84,136.79,10.9625]
[1642633997223,24.89914619,136.84,136.8,0.25]
[1642633997812,25.15914619,136.84,136.8,0.25]
[1642633998612,0.26,136.84,136.8,0.25]
[1642633998814,27.02144619,136.85,136.8,0.25]
[1642633999013,27.28144619,136.85,136.8,0.25]
[1642634000012,2.32664619,136.85,136.8,0.25]
[1642634000215,2.32664619,136.85,136.8,3.173]
[1642634000412,2.32664619,136.85,136.8,14.135]
[1642634000648,2.32664619,136.85,136.8,11.212]
[1642634001746,2.06664619,136.84,136.8,11.212]
[1642634001946,2.06664619,136.84,136.8,0.25]
[1642634002150,43.95232973,136.84,136.8,0.25]
[1642634002349,2.06664619,136.84,136.8,0.25]
[1642634003351,46.46560272,136.86,136.8,0.25]
[1642634003553,46.46560272,136.86,136.81,2.923]
[1642634003554,52.46560272,136.86,136.81,2.923]
[1642634003748,52.46560272,136.86,136.82,0.25]
[1642634003947,52.46560272,136.86,136.81,2.923]
[1642634004148,0.25,136.85,136.78,8.923]
[1642634004348,0.25,136.85,136.79,0.25]
[1642634004752,0.25,136.85,136.76,6.0]
[1642634004951,0.25,136.85,136.77,0.25]
[1642634005247,0.25,136.85,136.77,3.173]
[1642634006048,11.2156,136.85,136.77,3.173]
[1642634006249,0.25,136.85,136.77,3.173]
[1642634009653,0.25,136.85,136.77,0.25]
[1642634010053,11.2155,136.85,136.77,0.25]
[1642634010654,34.1053,136.85,136.78,2.923]
[1642634011054,34.1053,136.85,136.79,0.25]
[1642634011454,23.1398,136.85,136.79,0.25]
[1642634012554,23.1398,136.85,136.79,6.25]
[1642634013057,23.1398,136.85,136.79,0.25]
[1642634013257,6.0,136.84,136.79,0.25]
[1642634013657,22.8898,136.85,136.79,0.25]
[1642634014060,6.0,136.84,136.79,0.25]
[1642634014858,42.59290007,136.83,136.79,0.25]
[1642634016263,42.59290007,136.83,136.77,0.25]
[1642634020774,73.29,136.82,136.74,10.9664]
[1642634020970,79.29,136.82,136.77,0.25]
[1642634021171,16.85,136.82,136.77,0.25]
[1642634021372,89.89,136.82,136.77,0.25]
[1642634022172,89.89,136.82,136.75,0.25]
[1642634022571,24.8222,136.81,136.72,17.2178]
[1642634022772,53.41546937,136.8,136.72,10.9678]
[1642634022971,64.01546937,136.8,136.71,2.924]
[1642634023172,74.98516937,136.8,136.71,2.924]
[1642634023373,2.924,136.79,136.71,2.924]
[1642634023571,6.0,136.78,136.68,10.9717]
[1642634023771,47.56181673,136.77,136.68,10.9717]
[1642634024171,6.25,136.76,136.69,0.25]
[1642634024373,6.0,136.76,136.69,0.25]
[1642634024573,47.56181673,136.77,136.69,11.2208]
[1642634024774,47.56181673,136.77,136.7,3.174]
[1642634025173,47.56181673,136.77,136.7,3.434]
[1642634025578,47.56181673,136.77,136.7,0.51]
[1642634025772,47.56181673,136.77,136.7,0.25]
[1642634025978,47.56181673,136.77,136.7,11.2198]
[1642634026174,36.96181673,136.77,136.7,11.2198]
[1642634026373,36.96181673,136.77,136.7,11.4798]
[1642634027002,36.96181673,136.77,136.71,2.924]
[1642634027204,36.96181673,136.77,136.72,0.25]
[1642634028314,37.22181673,136.77,136.72,0.25]
[1642634029713,37.22181673,136.77,136.71,0.25]
[1642634030213,0.25,136.76,136.71,0.25]
[1642634030413,0.25,136.76,136.7,10.9698]
[1642634030615,37.22181673,136.77,136.7,10.9698]
[1642634030914,0.26,136.77,136.7,10.9698]
[1642634031323,0.25,136.78,136.7,10.9698]
[1642634031520,0.25,136.78,136.71,2.924]
[1642634031721,0.25,136.78,136.72,0.25]
[1642634032124,6.25,136.78,136.71,2.924]
[1642634032326,17.2212,136.78,136.71,2.924]
[1642634032524,39.29111484,136.76,136.71,2.924]
[1642634032725,0.25,136.75,136.66,2.924]
[1642634033025,31.0839,136.75,136.66,2.924]
[1642634033627,31.0839,136.75,136.67,0.25]
[1642634033825,104.1239,136.75,136.68,2.924]
[1642634034226,104.1239,136.75,136.69,0.25]
[1642634035828,104.1239,136.75,136.68,0.25]
[1642634036129,115.0975,136.75,136.68,0.25]
[1642634036927,115.3575,136.75,136.66,0.25]
[1642634037127,25.0939,136.75,136.66,11.2232]
[1642634037327,0.26,136.75,136.66,11.4832]
[1642634037527,6.26,136.75,136.67,6.0]
[1642634037726,6.26,136.75,136.68,0.25]
[1642634037727,0.26,136.75,136.68,0.25]
[1642634037929,0.25,136.74,136.68,0.25]
[1642634038946,0.25,136.74,136.66,0.25]
[1642634039147,0.25,136.74,136.65,8.924]
[1642634039447,0.25,136.74,136.61,2.926]
[1642634039448,42.43696251,136.73,136.61,2.926]
[1642634039647,16.6,136.72,136.57,10.6]
[1642634039848,38.49942735,136.7,136.56,2.926]
[1642634040050,6.0,136.69,136.57,24.4651]
[1642634040248,6.25,136.69,136.58,2.927]
[1642634040449,9.177,136.69,136.58,2.927]
[1642634040649,9.177,136.69,136.58,13.9061]
[1642634040650,46.01670335,136.67,136.58,13.9061]
[1642634040849,46.01670335,136.67,136.59,6.0]
[1642634041049,46.01670335,136.67,136.6,2.927]
[1642634041255,46.01670335,136.67,136.6,3.177]
[1642634042050,46.01670335,136.67,136.6,14.1546]
[1642634042854,46.27670335,136.67,136.6,14.1546]
[1642634044953,46.27670335,136.67,136.6,3.177]
[1642634045155,79.29,136.66,136.6,3.177]
[1642634045454,79.29,136.66,136.6,0.25]
[1642634045653,79.29,136.66,136.59,6.0]
[1642634045854,79.29,136.66,136.6,0.25]
[1642634046557,90.5307,136.66,136.56,8.927]
[1642634046854,90.5307,136.66,136.57,0.25]
[1642634047255,101.1307,136.66,136.57,0.25]
[1642634047656,102.95782602,136.66,136.57,0.25]
[1642634047855,10.9837,136.63,136.56,2.927]
[1642634048058,6.0,136.62,136.54,2.928]
[1642634048255,30.2843,136.62,136.52,2.928]
[1642634048456,10.6,136.61,136.5,2.928]
[1642634048656,6.0,136.6,136.49,13.915]
[1642634048955,57.72031686,136.59,136.5,4.77143774]
[1642634049158,6.0,136.58,136.5,7.69943774]
[1642634049356,0.25,136.58,136.5,7.69943774]
[1642634049757,0.25,136.58,136.51,0.25]
[1642634050758,10.6,136.59,136.51,0.25]
[1642634050959,23.0418,136.6,136.52,2.928]
[1642634051358,23.0418,136.6,136.53,0.25]
[1642634051558,23.0418,136.6,136.54,2.928]
[1642634051760,66.78599553,136.6,136.55,0.25]
[1642634052057,66.78599553,136.6,136.54,2.928]
[1642634052457,0.25,136.59,136.54,2.928]
[1642634052658,66.78599553,136.6,136.54,2.928]
[1642634052858,0.25,136.59,136.54,2.928]
[1642634053259,0.25,136.59,136.55,0.25]
[1642634053458,23.0418,136.6,136.55,0.25]
[1642634054562,61.06124478,136.6,136.55,0.25]
[1642634054763,61.32124478,136.6,136.52,3.438]
[1642634054962,61.32124478,136.6,136.53,6.0]
[1642634055165,61.32124478,136.6,136.54,0.25]
[1642634056968,23.3018,136.6,136.54,0.25]
[1642634057770,23.3018,136.6,136.54,3.178]
[1642634057968,23.3018,136.6,136.54,14.1609]
[1642634058167,10.6,136.64,136.55,1.08437717]
[1642634058370,47.8216,136.65,136.56,2.928]
[1642634058567,47.8216,136.65,136.56,9.178]
[1642634058768,47.8216,136.65,136.56,9.438]
[1642634059771,0.25,136.64,136.56,9.438]
[1642634059968,0.25,136.64,136.56,20.4193]
[1642634060571,58.8036,136.65,136.56,20.4193]
[1642634060771,0.25,136.64,136.56,20.4193]
[1642634060969,0.25,136.64,136.56,20.1593]
[1642634061173,84.2721,136.64,136.56,3.178]
[1642634061370,35.17146994,136.63,136.56,3.178]
[1642634061769,0.25,136.62,136.56,3.178]
[1642634063169,0.25,136.62,136.56,0.25]
[1642634063569,0.25,136.62,136.55,0.25]
[1642634063770,0.25,136.62,136.55,3.178]
[1642634064471,11.2336,136.62,136.55,2.928]
[1642634064774,11.2336,136.62,136.53,2.928]
[1642634064972,69.06454593,136.72,136.54,83.64]
[1642634065271,69.06454593,136.72,136.67,2.2]
[1642634065471,10.9743,136.76,136.67,2.2]
[1642634065674,10.6,136.77,136.68,0.25]
[1642634065872,47.03178736,136.76,136.68,9.174]
[1642634066774,120.07178736,136.76,136.68,9.174]
[1642634067174,0.25,136.75,136.68,9.174]
[1642634067577,0.25,136.75,136.68,8.924]
[1642634068078,76.214,136.75,136.68,8.924]
[1642634068975,76.474,136.75,136.69,0.25]
[1642634069177,0.25,136.75,136.69,0.25]
[1642634069578,13.524,136.79,136.69,4.1719419]
[1642634069778,2.924,136.81,136.7,2.924]
[1642634070081,79.6443,136.85,136.7,19.524]
[1642634070279,82.5683,136.85,136.71,0.25]
[1642634070477,82.88512784,136.84,136.73,10.9667]
[1642634070678,82.88512784,136.84,136.74,0.25]
[1642634070679,36.37493082,136.83,136.74,0.25]
[1642634071079,0.25,136.82,136.74,6.25]
[1642634072111,73.29,136.82,136.71,13.8927]
[1642634072312,76.214,136.82,136.72,0.25]
[1642634072515,76.214,136.82,136.72,6.25]
[1642634072913,86.814,136.82,136.72,6.25]
[1642634073123,86.814,136.82,136.72,0.25]
[1642634073416,13.774,136.82,136.72,0.25]
[1642634073616,13.774,136.82,136.72,17.2184]
[1642634073816,10.6,136.82,136.73,3.174]
[1642634074020,36.37493082,136.83,136.73,16.91285719]
[1642634074216,36.37493082,136.83,136.74,1.39685719]
[1642634074421,71.91762784,136.84,136.75,8.10870157]
[1642634074716,71.91762784,136.84,136.75,25.21870157]
[1642634074916,71.91762784,136.84,136.76,12.36155719]
[1642634075116,71.91762784,136.84,136.77,19.523]
[1642634075319,71.91762784,136.84,136.78,0.38688002]
[1642634075516,42.02553707,136.87,136.79,2.923]
[1642634075716,42.02553707,136.87,136.8,0.25]
[1642634075916,42.02553707,136.87,136.8,6.25]
[1642634076116,6.0,136.86,136.82,10.9605]
[1642634076316,6.0,136.86,136.83,0.25]
[1642634077616,6.0,136.86,136.81,0.25]